fUST/lending_fUST_20250817
["ID","MTS","AMOUNT","RATE_DAILY","PERIOD"]
[379718063,1755383446161,-480.0,0.00020411,2]
[379718065,1755383446171,-480.0,0.00020411,2]
[379718067,1755383446180,-671.72,0.00020411,2]
[379718069,1755383446189,-480.0,0.00020411,2]
[379718071,1755383446198,-480.0,0.00020411,2]
[379718073,1755383446207,-480.0,0.00020411,2]
[379718075,1755383446217,-480.0,0.00020411,2]
[379718077,1755383446227,-480.0,0.00020411,2]
[379718079,1755383446236,-480.0,0.00020411,2]
[379718081,1755383446245,-480.0,0.00020411,2]
[379718083,1755383446255,-480.0,0.00020411,2]
[379718085,1755383446264,-8162.67,0.00020411,2]
[379718087,1755383446273,-480.0,0.00020411,2]
[379718089,1755383446283,-480.0,0.00020411,2]
[379718091,1755383446293,-480.0,0.00020411,2]
[379718093,1755383446302,-480.0,0.00020411,2]
[379718095,1755383446311,-480.0,0.00020411,2]
[379718097,1755383446321,-480.0,0.00020411,2]
[379718099,1755383446330,-522.19,0.00020411,2]
[379718101,1755383446340,-480.0,0.00020411,2]
[379718103,1755383446349,-480.0,0.00020411,2]
[379718105,1755383446358,-480.0,0.00020411,2]
[379718107,1755383446368,-5769.78,0.00020411,2]
[379718109,1755383446377,-480.0,0.00020411,2]
[379718111,1755383446387,-488.1,0.00020411,2]
[379718113,1755383446397,-480.0,0.00020411,2]
[379718115,1755383446407,-480.0,0.00020411,2]
[379718117,1755383446417,-480.0,0.00020411,2]
[379718119,1755383446427,-480.0,0.00020411,2]
[379718121,1755383446436,-480.0,0.00020411,2]
[379718123,1755383446445,-526.58,0.00020411,2]
[379718125,1755383446455,-480.0,0.00020411,2]
[379718127,1755383446464,-480.0,0.00020411,2]
[379718129,1755383446473,-480.0,0.00020411,2]
[379718131,1755383446482,-1154.86,0.00020411,2]
[379718133,1755383446491,-480.0,0.00020411,2]
[379718136,1755383446500,-480.0,0.00020411,2]
[379718138,1755383446509,-486.21,0.00020411,2]
[379718140,1755383446518,-480.0,0.00020411,2]
[379718142,1755383446527,-480.0,0.00020411,2]
[379718144,1755383446536,-480.0,0.00020411,2]
[379718146,1755383446545,-480.0,0.00020411,2]
[379718148,1755383446555,-1023.8,0.00020411,2]
[379718150,1755383446564,-1010.56,0.00020411,2]
[379718152,1755383446574,-480.0,0.00020411,2]
[379718154,1755383446582,-762.37,0.00020411,2]
[379718156,1755383446591,-480.0,0.00020411,2]
[379718158,1755383446600,-480.0,0.00020411,2]
[379718160,1755383446610,-480.0,0.00020412,2]
[379718162,1755383446619,-480.0,0.00020412,2]
[379718164,1755383446629,-151.0,0.00020412,2]
[379718166,1755383446638,-151.0,0.00020412,2]
[379718168,1755383446649,-2397.19,0.00020413,2]
[379718170,1755383446659,-480.0,0.00020413,2]
[379718172,1755383446667,-2478.71,0.00020413,2]
[379718174,1755383446676,-480.0,0.00020413,2]
[379718176,1755383446687,-151.0,0.00020413,2]
[379718178,1755383446697,-480.0,0.00020415,2]
[379718180,1755383446706,-514.47,0.00020415,2]
[379718182,1755383446716,-480.0,0.00020415,2]
[379718184,1755383446727,-480.0,0.00020415,2]
[379718186,1755383446736,-480.0,0.00020415,2]
[379718188,1755383446746,-273.02138603,0.00020449,2]
[379718190,1755383446755,-271.0,0.00020449,2]
[379718192,1755383446764,-528.38334358,0.0002046,2]
[379718194,1755383446773,-160.0,0.0002046,2]
[379718196,1755383446783,-843.58077381,0.0002046,2]
[379718198,1755383446792,-160.0,0.0002046,2]
[379718200,1755383446801,-160.0,0.0002046,2]
[379718202,1755383446810,-160.0,0.0002046,2]
[379718204,1755383446819,-417.15472785,0.0002046,2]
[379718206,1755383446829,-12681.6255076,0.0002046,2]
[379718208,1755383446838,-462.1417622,0.0002046,2]
[379718210,1755383446847,-232.11368524,0.0002046,2]
[379718212,1755383446856,-215.68093138,0.0002046,2]
[379718214,1755383446865,-160.0,0.0002046,2]
[379718216,1755383446874,-151.0,0.00020464,2]
[379718218,1755383446883,-151.0,0.00020464,2]
[379718220,1755383446892,-152.197988,0.00020464,2]
[379718222,1755383446901,-214.858764,0.00020464,2]
[379718223,1755383446911,-214.858764,0.00020464,2]
[379718239,1755383447046,-151.0,0.00020464,2]
[379718241,1755383447055,-151.0,0.00020464,2]
[379718244,1755383447079,-151.0,0.00020464,2]
[379718246,1755383447089,-151.0,0.00020464,2]
[379718248,1755383447098,-500.0,0.00020473,2]
[379718250,1755383447107,-500.0,0.00020473,2]
[379718252,1755383447116,-500.0,0.00020473,2]
[379718254,1755383447136,-500.0,0.00020473,2]
[379718255,1755383447160,-500.0,0.00020473,2]
[379718257,1755383447169,-500.0,0.00020473,2]
[379718259,1755383447179,-503.65875214,0.00020473,2]
[379718261,1755383447188,-500.0,0.00020473,2]
[379718263,1755383447199,-500.0,0.00020473,2]
[379718266,1755383447209,-500.0,0.00020473,2]
[379718268,1755383447220,-500.0,0.00020473,2]
[379718270,1755383447231,-500.0,0.00020473,2]
[379718271,1755383447241,-500.0,0.00020473,2]
[379718274,1755383447251,-500.0,0.00020473,2]
[379718276,1755383447261,-500.0,0.00020473,2]
[379718278,1755383447271,-501.45286965,0.00020473,2]
[379718280,1755383447280,-500.0,0.00020473,2]
[379718281,1755383447290,-501.79228155,0.00020473,2]
[379718283,1755383447300,-500.0,0.00020473,2]
[379718285,1755383447314,-500.0,0.00020473,2]
[379718287,1755383447326,-500.0,0.00020473,2]
[379718289,1755383447337,-500.0,0.00020473,2]
[379718292,1755383447346,-500.0,0.00020473,2]
[379718294,1755383447355,-151.0,0.00020473,2]
[379718296,1755383447365,-151.0,0.00020473,2]
[379718297,1755383447374,-151.0,0.00020473,2]
[379718299,1755383447384,-271.0,0.00020499,2]
[379718301,1755383447394,-200.0,0.00020539,20]
[379718304,1755383447406,-200.0,0.00020539,20]
[379718305,1755383447415,-200.0,0.00020539,20]
[379718308,1755383447427,-200.0,0.00020539,20]
[379718309,1755383447439,-200.0,0.00020539,20]
[379718311,1755383447450,-200.0,0.00020539,20]
[379718313,1755383447460,-200.0,0.00020539,20]
[379718316,1755383447469,-200.0,0.00020539,20]
[379718318,1755383447481,-200.0,0.00020539,20]
[379718320,1755383447490,-200.0,0.00020539,20]
[379718321,1755383447500,-600.0,0.0002054,20]
[379718323,1755383447510,-151.0,0.000206,3]
[379718326,1755383447521,-151.0,0.000206,4]
[379718327,1755383447530,-431.9034523,0.000206,2]
[379718328,1755383447539,-273.02138603,0.00020655,2]
[379718329,1755383447549,-271.0,0.00020667,2]
[379718330,1755383447558,-676.97,0.00020682,2]
[379718331,1755383447568,-615.55,0.00020682,2]
[379718332,1755383447578,-480.0,0.00020682,2]
[379718333,1755383447587,-634.32,0.00020682,2]
[379718334,1755383447597,-1632.4,0.00020682,2]
[379718335,1755383447606,-2204.33,0.00020682,2]
[379718336,1755383447616,-480.0,0.00020682,2]
[379718337,1755383447625,-480.0,0.00020682,2]
[379718338,1755383447635,-1659.35,0.00020682,2]
[379718339,1755383447646,-577.74,0.00020682,2]
[379718340,1755383447657,-524.5,0.00020682,2]
[379718341,1755383447666,-779.71,0.00020682,2]
[379718342,1755383447675,-480.0,0.00020682,2]
[379718343,1755383447684,-2362.44,0.00020682,2]
[379718344,1755383447694,-709.36,0.00020682,2]
[379718345,1755383447703,-4481.99,0.00020682,2]
[379718346,1755383447712,-480.0,0.00020682,2]
[379718347,1755383447722,-480.0,0.00020682,2]
[379718348,1755383447732,-946.11,0.00020682,2]
[379718349,1755383447741,-460.0,0.00020682,2]
[379718350,1755383447751,-480.0,0.00020682,2]
[379718351,1755383447760,-572.88712675,0.00020682,2]
[379718352,1755383447769,-151.0,0.00020683,2]
[379718353,1755383447778,-151.0,0.00020683,2]
[379718354,1755383447787,-1036.28,0.00020683,2]
[379718355,1755383447796,-518.45,0.00020683,2]
[379718356,1755383447806,-480.0,0.00020683,2]
[379718358,1755383447817,-480.0,0.00020683,2]
[379718360,1755383447827,-480.0,0.00020683,2]
[379718362,1755383447836,-1205.63,0.00020683,2]
[379718364,1755383447845,-480.0,0.00020683,2]
[379718366,1755383447854,-480.0,0.00020683,2]
[379718368,1755383447864,-480.0,0.00020683,2]
[379718370,1755383447874,-480.0,0.00020683,2]
[379718372,1755383447883,-480.0,0.00020683,2]
[379718374,1755383447892,-480.0,0.00020683,2]
[379718376,1755383447901,-480.0,0.00020683,2]
[379718378,1755383447910,-588.5,0.00020683,2]
[379718380,1755383447919,-480.0,0.00020683,2]
[379718382,1755383447929,-802.43,0.00020683,2]
[379718384,1755383447938,-480.0,0.00020683,2]
[379718386,1755383447947,-854.37,0.00020683,2]
[379718388,1755383447956,-1358.18,0.00020683,2]
[379718390,1755383447965,-789.9,0.00020683,2]
[379718392,1755383447975,-496.73,0.00020683,2]
[379718394,1755383447984,-480.0,0.00020683,2]
[379718396,1755383447992,-480.0,0.00020683,2]
[379718397,1755383448001,-1300.78,0.00020683,2]
[379718399,1755383448011,-543.3,0.00020683,2]
[379718401,1755383448020,-480.0,0.00020683,2]
[379718403,1755383448029,-798.37,0.00020683,2]
[379718405,1755383448038,-480.0,0.00020683,2]
[379718407,1755383448048,-480.0,0.00020683,2]
[379718409,1755383448057,-480.0,0.00020683,2]
[379718411,1755383448066,-519.09,0.00020683,2]
[379718413,1755383448076,-782.49,0.00020683,2]
[379718415,1755383448085,-954.7,0.00020683,2]
[379718417,1755383448094,-480.0,0.00020683,2]
[379718419,1755383448104,-566.02,0.00020683,2]
[379718421,1755383448113,-542.25,0.00020683,2]
[379718423,1755383448123,-759.04,0.00020683,2]
[379718425,1755383448132,-2917.42,0.00020683,2]
[379718427,1755383448142,-480.0,0.00020683,2]
[379718429,1755383448152,-530.19,0.00020683,2]
[379718431,1755383448161,-480.0,0.00020683,2]
[379718433,1755383448170,-658.32,0.00020683,2]
[379718435,1755383448180,-151.0,0.00020683,2]
[379718437,1755383448189,-813.14,0.00020683,2]
[379718439,1755383448199,-480.0,0.00020683,2]
[379718441,1755383448208,-599.63,0.00020683,2]
[379718443,1755383448218,-480.0,0.00020683,2]
[379718445,1755383448228,-987.94,0.00020683,2]
[379718447,1755383448237,-480.0,0.00020683,2]
[379718449,1755383448246,-480.0,0.00020683,2]
[379718451,1755383448255,-480.0,0.00020683,2]
[379718453,1755383448264,-480.0,0.00020683,2]
[379718455,1755383448273,-631.64,0.00020683,2]
[379718458,1755383448287,-8799.71,0.00020683,2]
[379718460,1755383448296,-901.2,0.00020683,2]
[379718462,1755383448306,-480.0,0.00020683,2]
[379718463,1755383448315,-480.0,0.00020683,2]
[379718465,1755383448325,-639.74,0.00020683,2]
[379718467,1755383448334,-874.96,0.00020683,2]
[379718469,1755383448343,-480.0,0.00020683,2]
[379718471,1755383448353,-765.99,0.00020683,2]
[379718473,1755383448364,-480.0,0.00020683,2]
[379718475,1755383448375,-480.0,0.00020683,2]
[379718477,1755383448385,-480.0,0.00020683,2]
[379718479,1755383448394,-925.97,0.00020683,2]
[379718481,1755383448404,-758.54,0.00020683,2]
[379718483,1755383448413,-480.0,0.00020683,2]
[379718485,1755383448423,-659.8,0.00020683,2]
[379718487,1755383448432,-529.3,0.00020683,2]
[379718489,1755383448441,-480.0,0.00020683,2]
[379718491,1755383448451,-254.66206498,0.00020683,2]
[379718493,1755383448460,-480.0,0.00020683,2]
[379718495,1755383448469,-480.0,0.00020683,2]
[379718497,1755383448479,-480.0,0.00020683,2]
[379718499,1755383448488,-480.0,0.00020683,2]
[379718501,1755383448497,-1069.66,0.00020683,2]
[379718503,1755383448507,-480.0,0.00020684,2]
[379718505,1755383448516,-480.0,0.00020684,2]
[379718507,1755383448525,-480.0,0.00020684,2]
[379718509,1755383448535,-480.0,0.00020684,2]
[379718511,1755383448545,-480.0,0.00020684,2]
[379718513,1755383448554,-480.0,0.00020684,2]
[379718515,1755383448564,-480.0,0.00020684,2]
[379718517,1755383448574,-363.86311851,0.00020684,2]
[379718519,1755383448583,-460.0,0.00020684,2]
[379718521,1755383448592,-480.0,0.00020684,2]
[379718523,1755383448601,-509.41,0.00020684,2]
[379718525,1755383448611,-440.0,0.00020684,2]
[379718527,1755383448621,-480.0,0.00020684,2]
[379718529,1755383448630,-480.0,0.00020684,2]
[379718531,1755383448640,-480.0,0.00020684,2]
[379718533,1755383448654,-480.0,0.00020684,2]
[379718535,1755383448664,-480.0,0.00020684,2]
[379718537,1755383448674,-1539.09,0.00020684,2]
[379718539,1755383448683,-710.45,0.00020684,2]
[379718541,1755383448695,-614.89,0.00020684,2]
[379718543,1755383448704,-564.94,0.00020684,2]
[379718545,1755383448713,-321.45642991,0.00020684,2]
[379718547,1755383448723,-480.0,0.00020684,2]
[379718549,1755383448733,-480.0,0.00020684,2]
[379718551,1755383448743,-2765.82,0.00020684,2]
[379718553,1755383448753,-480.0,0.00020684,2]
[379718555,1755383448763,-623.9,0.00020684,2]
[379718557,1755383448772,-480.0,0.00020684,2]
[379718559,1755383448782,-191.77045413,0.00020684,2]
[379718561,1755383448791,-480.0,0.00020684,2]
[379718563,1755383448801,-151.0,0.00020684,2]
[379718565,1755383448810,-480.0,0.00020684,2]
[379718567,1755383448820,-151.0,0.00020684,2]
[379718569,1755383448829,-480.0,0.00020685,2]
[379718571,1755383448838,-480.0,0.00020685,2]
[379718573,1755383448848,-480.0,0.00020685,2]
[379718575,1755383448857,-480.0,0.00020685,2]
[379718577,1755383448867,-480.0,0.00020685,2]
[379718579,1755383448877,-480.0,0.00020685,2]
[379718581,1755383448886,-480.0,0.00020685,2]
[379718583,1755383448896,-480.0,0.00020685,2]
[379718585,1755383448906,-671.72,0.00020685,2]
[379718587,1755383448915,-480.0,0.00020685,2]
[379718589,1755383448925,-531.59138549,0.00020685,2]
[379718591,1755383448935,-480.0,0.00020685,2]
[379718593,1755383448944,-480.0,0.00020685,2]
[379718595,1755383448953,-480.0,0.00020685,2]
[379718597,1755383448963,-480.0,0.00020685,2]
[379718599,1755383448972,-480.0,0.00020685,2]
[379718601,1755383448981,-480.0,0.00020685,2]
[379718603,1755383448991,-8162.67,0.00020685,2]
[379718605,1755383449000,-480.0,0.00020685,2]
[379718607,1755383449011,-304.56179385,0.00020685,2]
[379718609,1755383449020,-480.0,0.00020685,2]
[379718611,1755383449030,-480.0,0.00020685,2]
[379718613,1755383449040,-522.19,0.00020685,2]
[379718615,1755383449049,-480.0,0.00020685,2]
[379718617,1755383449059,-5769.78,0.00020685,2]
[379718619,1755383449068,-480.0,0.00020685,2]
[379718621,1755383449077,-488.1,0.00020685,2]
[379718623,1755383449087,-480.0,0.00020685,2]
[379718625,1755383449096,-480.0,0.00020685,2]
[379718627,1755383449106,-151.0,0.00020685,2]
[379718629,1755383449115,-151.0,0.00020685,2]
[379718631,1755383449125,-526.58,0.00020685,2]
[379718633,1755383449134,-480.0,0.00020685,2]
[379718635,1755383449143,-480.0,0.00020685,2]
[379718637,1755383449153,-1154.86,0.00020685,2]
[379718639,1755383449163,-480.0,0.00020685,2]
[379718641,1755383449172,-480.0,0.00020685,2]
[379718643,1755383449182,-486.21,0.00020685,2]
[379718645,1755383449191,-480.0,0.00020685,2]
[379718647,1755383449201,-351.592917,0.00020685,2]
[379718649,1755383449210,-480.0,0.00020685,2]
[379718651,1755383449220,-1023.8,0.00020685,2]
[379718653,1755383449230,-1010.56,0.00020685,2]
[379718655,1755383449239,-378.048425,0.00020685,2]
[379718657,1755383449249,-378.048425,0.00020685,2]
[379718659,1755383449259,-480.0,0.00020685,2]
[379718661,1755383449268,-151.0,0.00020685,2]
[379718663,1755383449278,-151.0,0.00020685,2]
[379718665,1755383449288,-762.37,0.00020685,2]
[379718667,1755383449298,-480.0,0.00020685,2]
[379718669,1755383449307,-480.0,0.00020685,2]
[379718671,1755383449316,-480.0,0.00020686,2]
[379718673,1755383449326,-2397.19,0.00020687,2]
[379718675,1755383449336,-480.0,0.00020687,2]
[379718677,1755383449346,-2478.71,0.00020687,2]
[379718679,1755383449356,-480.0,0.00020687,2]
[379718681,1755383449365,-151.0,0.00020687,2]
[379718683,1755383449375,-155.96476578,0.00020689,2]
[379718685,1755383449387,-514.47,0.00020689,2]
[379718687,1755383449397,-480.0,0.00020689,2]
[379718689,1755383449406,-151.0,0.00020689,2]
[379718691,1755383449415,-151.0,0.00020689,2]
[379718693,1755383449425,-382.36099808,0.00020689,2]
[379718695,1755383449434,-214.858764,0.00020689,2]
[379718697,1755383449442,-214.858764,0.00020689,2]
[379718699,1755383449452,-151.0,0.00020689,2]
[379718701,1755383449461,-151.0,0.00020689,2]
[379718702,1755383449470,-151.0,0.00020693,2]
[379718704,1755383449479,-151.0,0.00020693,2]
[379718706,1755383449488,-151.0,0.00020693,2]
[379718708,1755383449497,-654.1,0.00020768,2]
[379718710,1755383449506,-151.0,0.000208,4]
[379718712,1755383449515,-183.463,0.00020807,2]
[379718714,1755383449524,-158.679043,0.0002086,3]
[379718716,1755383449533,-273.02138603,0.00020861,2]
[379718718,1755383449543,-972.961,0.00020864,2]
[379718720,1755383449552,-768.296,0.00020864,2]
[379718722,1755383449561,-2152.0,0.00020864,2]
[379718724,1755383449571,-408.0,0.00020864,2]
[379718726,1755383449580,-421.235,0.00020864,2]
[379718728,1755383449589,-156.82471643,0.00020877,2]
[379718730,1755383449598,-617.35,0.00020906,2]
[379718732,1755383449607,-500.0,0.00020906,2]
[379718734,1755383449617,-676.97,0.00020956,2]
[379718736,1755383449626,-615.55,0.00020956,2]
[379718739,1755383449637,-480.0,0.00020956,2]
[379718741,1755383449650,-634.32,0.00020956,2]
[379718742,1755383449659,-1632.4,0.00020956,2]
[379718744,1755383449668,-2204.33,0.00020956,2]
[379718746,1755383449677,-480.0,0.00020956,2]
[379718748,1755383449687,-1659.35,0.00020956,2]
[379718750,1755383449697,-577.74,0.00020956,2]
[379718752,1755383449706,-524.5,0.00020956,2]
[379718754,1755383449715,-779.71,0.00020956,2]
[379718756,1755383449726,-480.0,0.00020956,2]
[379718758,1755383449736,-2362.44,0.00020956,2]
[379718760,1755383449745,-709.36,0.00020956,2]
[379718762,1755383449755,-4481.99,0.00020956,2]
[379718764,1755383449765,-480.0,0.00020956,2]
[379718765,1755383449774,-480.0,0.00020956,2]
[379718766,1755383449783,-946.11,0.00020956,2]
[379718767,1755383449792,-251.05390925,0.00020956,2]
[379718768,1755383449801,-166.052772,0.00020957,2]
[379718769,1755383449811,-151.0,0.00020957,2]
[379718770,1755383449819,-1036.28,0.00020957,2]
[379718771,1755383449829,-518.45,0.00020957,2]
[379718772,1755383449838,-480.0,0.00020957,2]
[379718773,1755383449847,-480.0,0.00020957,2]
[379718774,1755383449856,-1205.63,0.00020957,2]
[379718775,1755383449865,-480.0,0.00020957,2]
[379718776,1755383449874,-480.0,0.00020957,2]
[379718777,1755383449884,-480.0,0.00020957,2]
[379718778,1755383449893,-480.0,0.00020957,2]
[379718779,1755383449902,-480.0,0.00020957,2]
[379718780,1755383449912,-588.5,0.00020957,2]
[379718781,1755383449921,-802.43,0.00020957,2]
[379718782,1755383449930,-854.37,0.00020957,2]
[379718783,1755383449940,-1358.18,0.00020957,2]
[379718784,1755383449949,-789.9,0.00020957,2]
[379718785,1755383449958,-496.73,0.00020957,2]
[379718786,1755383449968,-480.0,0.00020957,2]
[379718787,1755383449977,-1300.78,0.00020957,2]
[379718788,1755383449987,-543.3,0.00020957,2]
[379718789,1755383449996,-480.0,0.00020957,2]
[379718790,1755383450005,-798.37,0.00020957,2]
[379718791,1755383450014,-480.0,0.00020957,2]
[379718792,1755383450150,-480.0,0.00020957,2]
[379718793,1755383450160,-519.09,0.00020957,2]
[379718794,1755383450169,-782.49,0.00020957,2]
[379718795,1755383450179,-954.7,0.00020957,2]
[379718796,1755383450189,-566.02,0.00020957,2]
[379718797,1755383450199,-542.25,0.00020957,2]
[379718798,1755383450209,-759.04,0.00020957,2]
[379718799,1755383450218,-2917.42,0.00020957,2]
[379718800,1755383450228,-480.0,0.00020957,2]
[379718801,1755383450237,-530.19,0.00020957,2]
[379718802,1755383450247,-480.0,0.00020957,2]
[379718803,1755383450256,-658.32,0.00020957,2]
[379718804,1755383450266,-813.14,0.00020957,2]
[379718805,1755383450275,-480.0,0.00020957,2]
[379718806,1755383450284,-599.63,0.00020957,2]
[379718807,1755383450294,-480.0,0.00020957,2]
[379718808,1755383450303,-987.94,0.00020957,2]
[379718809,1755383450312,-480.0,0.00020957,2]
[379718810,1755383450321,-480.0,0.00020957,2]
[379718811,1755383450330,-480.0,0.00020957,2]
[379718812,1755383450339,-631.64,0.00020957,2]
[379718813,1755383450348,-8799.71,0.00020957,2]
[379718814,1755383450357,-901.2,0.00020957,2]
[379718815,1755383450366,-480.0,0.00020957,2]
[379718816,1755383450375,-480.0,0.00020957,2]
[379718817,1755383450385,-639.74,0.00020957,2]
[379718818,1755383450395,-874.96,0.00020957,2]
[379718819,1755383450404,-765.99,0.00020957,2]
[379718820,1755383450414,-480.0,0.00020957,2]
[379718821,1755383450423,-151.0,0.00020957,2]
[379718822,1755383450432,-925.97,0.00020957,2]
[379718823,1755383450441,-758.54,0.00020957,2]
[379718824,1755383450450,-480.0,0.00020957,2]
[379718825,1755383450459,-659.8,0.00020957,2]
[379718826,1755383450468,-480.0,0.00020957,2]
[379718827,1755383450478,-480.0,0.00020957,2]
[379718828,1755383450487,-480.0,0.00020957,2]
[379718829,1755383450496,-480.0,0.00020957,2]
[379718830,1755383450506,-480.0,0.00020957,2]
[379718831,1755383450515,-1069.66,0.00020957,2]
[379718832,1755383450524,-480.0,0.00020958,2]
[379718833,1755383450533,-480.0,0.00020958,2]
[379718834,1755383450542,-480.0,0.00020958,2]
[379718835,1755383450551,-480.0,0.00020958,2]
[379718836,1755383450560,-480.0,0.00020958,2]
[379718837,1755383450569,-509.41,0.00020958,2]
[379718838,1755383450579,-480.0,0.00020958,2]
[379718839,1755383450588,-173.24267667,0.00020958,2]
[379718840,1755383450597,-480.0,0.00020958,2]
[379718841,1755383450606,-1539.09,0.00020958,2]
[379718842,1755383450615,-710.45,0.00020958,2]
[379718843,1755383450625,-614.89,0.00020958,2]
[379718844,1755383450635,-564.94,0.00020958,2]
[379718845,1755383450647,-480.0,0.00020958,2]
[379718846,1755383450658,-480.0,0.00020958,2]
[379718847,1755383450668,-2765.82,0.00020958,2]
[379718848,1755383450678,-480.0,0.00020958,2]
[379718849,1755383450688,-623.9,0.00020958,2]
[379718850,1755383450699,-480.0,0.00020958,2]
[379718851,1755383450708,-480.0,0.00020958,2]
[379718852,1755383450718,-480.0,0.00020958,2]
[379718853,1755383450731,-151.0,0.00020958,2]
[379718854,1755383450741,-480.0,0.00020959,2]
[379718855,1755383450750,-480.0,0.00020959,2]
[379718856,1755383450759,-360.0,0.00020959,2]
[379718857,1755383450768,-480.0,0.00020959,2]
[379718858,1755383450778,-480.0,0.00020959,2]
[379718859,1755383450788,-480.0,0.00020959,2]
[379718860,1755383450798,-480.0,0.00020959,2]
[379718861,1755383450807,-480.0,0.00020959,2]
[379718863,1755383450817,-671.72,0.00020959,2]
[379718865,1755383450827,-816.908349,0.00020959,2]
[379718866,1755383450836,-480.0,0.00020959,2]
[379718867,1755383450845,-480.0,0.00020959,2]
[379718868,1755383450855,-480.0,0.00020959,2]
[379718869,1755383450865,-480.0,0.00020959,2]
[379718870,1755383450874,-480.0,0.00020959,2]
[379718871,1755383450886,-480.0,0.00020959,2]
[379718872,1755383450896,-8162.67,0.00020959,2]
[379718873,1755383450906,-480.0,0.00020959,2]
[379718874,1755383450915,-480.0,0.00020959,2]
[379718875,1755383450925,-480.0,0.00020959,2]
[379718876,1755383450934,-522.19,0.00020959,2]
[379718877,1755383450943,-480.0,0.00020959,2]
[379718878,1755383450952,-5769.78,0.00020959,2]
[379718879,1755383450962,-511.82837206,0.00020959,2]
[379718880,1755383450972,-488.1,0.00020959,2]
[379718881,1755383450982,-480.0,0.00020959,2]
[379718882,1755383450992,-480.0,0.00020959,2]
[379718883,1755383451001,-151.0,0.00020959,2]
[379718884,1755383451011,-151.0,0.00020959,2]
[379718885,1755383451020,-526.58,0.00020959,2]
[379718886,1755383451030,-223.62867858,0.00020959,2]
[379718887,1755383451039,-1154.86,0.00020959,2]
[379718888,1755383451049,-486.21,0.00020959,2]
[379718889,1755383451058,-480.0,0.00020959,2]
[379718890,1755383451068,-480.0,0.00020959,2]
[379718891,1755383451079,-1023.8,0.00020959,2]
[379718892,1755383451088,-1010.56,0.00020959,2]
[379718893,1755383451098,-378.048425,0.00020959,2]
[379718894,1755383451107,-378.048425,0.00020959,2]
[379718895,1755383451116,-480.0,0.00020959,2]
[379718896,1755383451126,-151.0,0.00020959,2]
[379718897,1755383451135,-762.37,0.00020959,2]
[379718898,1755383451145,-480.0,0.00020959,2]
[379718899,1755383451154,-480.0,0.00020959,2]
[379718900,1755383451163,-480.0,0.0002096,2]
[379718901,1755383451173,-2397.19,0.00020961,2]
[379718902,1755383451182,-480.0,0.00020961,2]
[379718903,1755383451191,-2478.71,0.00020961,2]
[379718904,1755383451200,-480.0,0.00020961,2]
[379718905,1755383451210,-151.0,0.00020961,2]
[379718906,1755383451220,-514.47,0.00020963,2]